bitfinex-derivatives/quotes_BNBF0:USTF0_20260221
["timestamp","ask_amount","ask_price","bid_price","bid_amount"]
[1771715397259,0.94309445,626.27,625.34,2.3913379]
[1771715397455,1.19188994,626.47,625.33,2.3913379]
[1771715397757,0.94093652,626.46,625.33,2.3913379]
[1771715398053,0.94093652,626.45,625.35,1.293]
[1771715398256,0.94093652,626.44,625.35,1.293]
[1771715398455,0.94093652,626.43,625.35,1.293]
[1771715398659,0.94093652,626.42,625.35,1.293]
[1771715398859,0.94093652,626.41,625.35,1.293]
[1771715399159,1.19188994,626.28,625.35,1.293]
[1771715399357,0.94093652,626.27,625.35,1.293]
[1771715399554,0.94093652,626.26,625.35,1.293]
[1771715399755,0.94093652,626.25,625.35,1.293]
[1771715399959,0.94093652,626.24,625.35,1.293]
[1771715400256,0.94093652,626.23,625.35,1.293]
[1771715400455,0.94093652,626.22,625.35,1.293]
[1771715400759,0.94093652,626.21,625.35,1.293]
[1771715401059,0.94093652,626.2,625.35,1.293]
[1771715401259,1.19188994,626.32,625.35,1.293]
[1771715401260,0.94093652,626.19,625.35,1.293]
[1771715401457,0.94093652,626.18,625.35,1.293]
[1771715401660,0.94093652,626.17,625.35,1.293]
[1771715401859,0.94093652,626.16,625.35,1.293]
[1771715402056,0.94093652,626.15,625.35,1.293]
[1771715402357,0.27795749,626.77,625.35,1.293]
[1771715402358,0.94093652,626.14,625.35,1.293]
[1771715402560,0.94093652,626.13,625.35,1.293]
[1771715402761,0.94093652,626.12,625.35,1.293]
[1771715402957,0.94093652,626.11,625.35,1.293]
[1771715403262,0.94093652,626.1,625.35,1.293]
[1771715403464,1.19188994,626.3,625.35,1.293]
[1771715403662,0.94066311,626.29,625.35,1.293]
[1771715403958,0.94066311,626.28,625.35,1.293]
[1771715404162,0.94066311,626.27,625.35,1.293]
[1771715404461,0.94066311,626.26,625.35,1.293]
[1771715404758,0.94066311,626.25,625.35,1.293]
[1771715404961,0.94066311,626.24,625.35,1.293]
[1771715405160,1.19188994,626.3,625.35,1.293]
[1771715405161,0.94066311,626.23,625.35,1.293]
[1771715405362,0.94066311,626.22,625.35,1.293]
[1771715405563,0.94066311,626.21,625.35,1.293]
[1771715405760,0.94066311,626.2,625.35,1.293]
[1771715405960,0.94066311,626.19,625.35,1.293]
[1771715406163,0.94066311,626.18,625.35,1.293]
[1771715406461,0.94066311,626.17,625.35,1.293]
[1771715406663,0.94066311,626.16,625.35,1.293]
[1771715406963,0.94066311,626.15,625.35,1.293]
[1771715407159,0.94066311,626.14,625.35,1.293]
[1771715407361,0.94066311,626.13,625.35,1.293]
[1771715407563,0.94066311,626.12,625.35,1.293]
[1771715407766,0.94066311,626.11,625.35,1.293]
[1771715407966,0.94066311,626.1,625.35,1.293]
[1771715408266,0.94066311,626.09,625.35,1.293]
[1771715408568,1.19188994,626.29,625.35,1.293]
[1771715408762,0.94071843,626.28,625.35,1.293]
[1771715408968,0.94071843,626.27,625.35,1.293]
[1771715409268,0.94071843,626.26,625.35,1.293]
[1771715409462,0.94071843,626.25,625.35,1.293]
[1771715409664,0.94071843,626.24,625.35,1.293]
[1771715409862,0.94071843,626.23,625.35,1.293]
[1771715410163,0.94071843,626.22,625.35,1.293]
[1771715410362,0.94071843,626.21,625.35,1.293]
[1771715410564,0.94071843,626.2,625.35,1.293]
[1771715410763,0.94071843,626.19,625.35,1.293]
[1771715411067,0.94071843,626.18,625.35,1.293]
[1771715411366,0.94071843,626.17,625.35,1.293]
[1771715411568,0.94071843,626.16,625.35,1.293]
[1771715411768,0.94071843,626.15,625.35,1.293]
[1771715411968,0.94071843,626.14,625.35,1.293]
[1771715412268,0.94071843,626.13,625.35,1.293]
[1771715412465,0.94071843,626.12,625.35,1.293]
[1771715412666,0.94071843,626.11,625.35,1.293]
[1771715412866,0.94071843,626.1,625.35,1.293]
[1771715413065,0.94071843,626.09,625.35,1.293]
[1771715413266,0.94071843,626.08,625.35,1.293]
[1771715413466,0.94071843,626.07,625.35,1.293]
[1771715413669,0.94071843,626.06,625.35,1.293]
[1771715413966,1.19188994,626.26,625.35,1.293]
[1771715414267,2.1338911,626.25,625.35,1.293]
[1771715414567,0.94200116,626.24,625.35,1.293]
[1771715416265,2.1338911,626.24,625.35,1.293]
[1771715416466,0.94200116,626.23,625.35,1.293]
[1771715418369,2.1338911,626.23,625.35,1.293]
[1771715418667,0.94200116,626.22,625.35,1.293]
[1771715419467,2.1338911,626.22,625.35,1.293]
[1771715419772,0.94200116,626.21,625.35,1.293]
[1771715421371,2.1338911,626.21,625.35,1.293]
[1771715421568,0.94200116,626.2,625.35,1.293]
[1771715422273,2.1338911,626.2,625.35,1.293]
[1771715422469,0.94200116,626.19,625.35,1.293]
[1771715423168,1.19188994,626.17,625.35,1.293]
[1771715423369,2.1338911,626.16,625.35,1.293]
[1771715423575,0.94200116,626.15,625.35,1.293]
[1771715423870,2.1338911,626.15,625.35,1.293]
[1771715424071,0.94200116,626.14,625.35,1.293]
[1771715424573,2.1338911,626.14,625.35,1.293]
[1771715424772,2.1338911,626.13,625.35,1.293]
[1771715424969,0.94200116,626.12,625.35,1.293]
[1771715425270,1.19188994,626.09,625.35,1.293]
[1771715425471,1.19188994,625.9,625.35,1.293]
[1771715425669,2.1338911,625.89,625.35,1.293]
[1771715425873,0.94200116,625.88,625.35,1.293]
[1771715426075,0.94200116,625.87,625.35,1.293]
[1771715426270,0.94200116,625.86,625.35,1.293]
[1771715426474,0.94200116,625.85,625.35,1.293]
[1771715426670,0.94200116,625.84,625.35,1.293]
[1771715426870,0.94200116,625.83,625.35,1.293]
[1771715427176,0.94200116,625.82,625.35,1.293]
[1771715427375,1.19188994,625.82,625.35,1.293]
[1771715427574,0.94200116,625.81,625.35,1.293]
[1771715427772,0.94200116,625.8,625.35,1.293]
[1771715427971,0.94200116,625.79,625.35,1.293]
[1771715428271,0.94200116,625.78,625.35,1.293]
[1771715428475,0.94200116,625.77,625.35,1.293]
[1771715428674,0.94200116,625.76,625.35,1.293]
[1771715428873,0.94200116,625.75,625.35,1.293]
[1771715429073,0.94200116,625.74,625.35,1.293]
[1771715429274,0.94200116,625.73,625.35,1.293]
[1771715429574,0.94200116,625.72,625.35,1.293]
[1771715429883,0.94200116,625.71,625.35,1.293]
[1771715430174,0.94200116,625.7,625.35,1.293]
[1771715430373,0.94200116,625.69,625.35,1.293]
[1771715430577,0.94200116,625.68,625.35,1.293]
[1771715430777,0.94200116,625.67,625.35,1.293]
[1771715430973,1.19188994,625.87,625.35,1.293]
[1771715431177,0.97753232,625.86,625.35,1.293]
[1771715431373,0.97753232,625.85,625.35,1.293]
[1771715431676,0.97753232,625.84,625.35,1.293]
[1771715431877,0.97753232,625.83,625.35,1.293]
[1771715432073,0.97753232,625.82,625.35,1.293]
[1771715432276,0.97753232,625.81,625.35,1.293]
[1771715432473,0.97753232,625.8,625.35,1.293]
[1771715432677,0.97753232,625.79,625.35,1.293]
[1771715432877,0.97753232,625.78,625.35,1.293]
[1771715433078,0.97753232,625.77,625.35,1.293]
[1771715433375,0.97753232,625.76,625.35,1.293]
[1771715433577,0.97753232,625.75,625.35,1.293]
[1771715433877,0.97753232,625.74,625.35,1.293]
[1771715434073,0.97753232,625.73,625.35,1.293]
[1771715434276,0.97753232,625.72,625.35,1.293]
[1771715434474,1.19188994,625.9,625.35,1.293]
[1771715434475,0.97753232,625.71,625.35,1.293]
[1771715434679,0.97753232,625.7,625.35,1.293]
[1771715434975,1.19188994,625.9,625.35,1.293]
[1771715435177,0.97616113,625.89,625.35,1.293]
[1771715435376,0.97616113,625.88,625.35,1.293]
[1771715435576,0.97616113,625.87,625.35,1.293]
[1771715435878,0.97616113,625.86,625.35,1.293]
[1771715436080,0.97616113,625.85,625.35,1.293]
[1771715436281,0.97616113,625.84,625.35,1.293]
[1771715436478,0.97616113,625.83,625.35,1.293]
[1771715436679,1.19188994,626.17,625.35,1.293]
[1771715436882,0.97634373,626.16,625.35,1.293]
[1771715437080,0.97634373,626.15,625.35,1.293]
[1771715437280,0.97634373,626.14,625.35,1.293]
[1771715437478,0.97634373,626.13,625.35,1.293]
[1771715437682,0.97634373,626.12,625.35,1.293]
[1771715437979,0.97634373,626.11,625.35,1.293]
[1771715438186,0.97634373,626.1,625.35,1.293]
[1771715438385,0.97634373,626.09,625.35,1.293]
[1771715438684,0.97634373,626.08,625.35,1.293]
[1771715438885,0.97634373,626.07,625.35,1.293]
[1771715439087,0.97634373,626.06,625.35,1.293]
[1771715439284,0.97634373,626.05,625.35,1.293]
[1771715439481,0.97634373,626.04,625.35,1.293]
[1771715439785,0.97634373,626.03,625.35,1.293]
[1771715439985,0.97634373,626.02,625.35,1.293]
[1771715440184,0.97634373,626.01,625.35,1.293]
[1771715440382,0.97634373,626.0,625.35,1.293]
[1771715440587,0.97634373,625.99,625.35,1.293]
[1771715440782,0.97634373,625.98,625.35,1.293]
[1771715440984,0.97634373,625.97,625.35,1.293]
[1771715441286,0.97634373,625.96,625.35,1.293]
[1771715441486,1.19188994,626.17,625.35,1.293]
[1771715441683,0.97736431,626.16,625.35,1.293]
[1771715441985,1.19188994,626.17,625.35,1.293]
[1771715441986,0.97736431,626.15,625.35,1.293]
[1771715442181,0.97736431,626.14,625.35,1.293]
[1771715442383,0.97736431,626.13,625.35,1.293]
[1771715442586,0.97736431,626.12,625.35,1.293]
[1771715442886,0.97736431,626.11,625.05,2.3913379]
[1771715443086,0.97736431,626.1,625.05,2.3913379]
[1771715443383,0.97736431,626.09,625.06,2.3913379]
[1771715443588,0.97736431,626.08,625.06,2.3913379]
[1771715443787,0.97736431,626.07,625.06,2.3913379]
[1771715443987,0.97736431,626.06,625.06,2.3913379]
[1771715444187,1.19188994,626.16,625.06,2.3913379]
[1771715444188,0.97736431,626.05,625.06,2.3913379]
[1771715444483,0.97736431,626.04,625.08,2.3913379]
[1771715444688,0.97736431,626.03,625.08,2.3913379]
[1771715444883,0.97736431,626.02,625.08,2.3913379]
[1771715445089,0.97736431,626.01,625.08,2.3913379]
[1771715445388,0.97736431,626.0,625.08,2.3913379]
[1771715445587,0.97736431,625.99,625.08,2.3913379]
[1771715445785,0.97736431,625.98,625.08,2.3913379]
[1771715445984,1.19188994,626.18,625.08,2.3913379]
[1771715446185,0.97802575,626.17,625.09,1.385]
[1771715446389,2.16991569,626.16,625.09,1.385]
[1771715446586,0.97802575,626.15,625.09,1.385]
[1771715447487,1.19188994,626.14,625.09,1.385]
[1771715447693,0.97802575,626.13,625.09,1.385]
[1771715449786,1.19188994,626.12,625.09,1.385]
[1771715449990,1.19188994,626.09,625.09,1.385]
[1771715450188,1.19188994,626.06,625.09,1.385]
[1771715450391,0.97802575,626.05,625.09,1.385]
[1771715458893,0.97802575,626.04,625.09,1.385]
[1771715459087,0.97802575,626.03,625.09,1.385]
[1771715459291,0.97802575,626.02,625.09,1.385]
[1771715459594,0.97802575,626.01,625.09,1.385]
[1771715459791,0.97802575,626.0,625.09,1.385]
[1771715460094,0.97802575,625.99,625.09,1.385]
[1771715460294,0.97802575,625.98,625.09,1.385]
[1771715460490,0.97802575,625.97,625.09,1.385]
[1771715460793,0.97802575,625.96,625.09,1.385]
[1771715460995,0.97802575,625.95,625.09,1.385]
[1771715461189,1.19188994,626.14,625.09,1.385]
[1771715461190,0.97802575,625.94,625.09,1.385]
[1771715461393,1.19188994,626.14,625.09,1.385]
[1771715461592,0.97769791,626.13,625.09,1.385]
[1771715461793,0.97769791,626.12,625.09,1.385]
[1771715462088,0.97769791,626.11,625.09,1.385]
[1771715462389,0.97769791,626.1,625.09,1.385]
[1771715462593,0.97769791,626.09,625.09,1.385]
[1771715462890,0.97769791,626.08,625.09,1.385]
[1771715463192,0.97769791,626.07,625.09,1.385]
[1771715463396,0.97769791,626.06,625.09,1.385]
[1771715463596,0.97769791,626.05,625.09,1.385]
[1771715463796,0.97769791,626.04,625.09,1.385]
[1771715463993,0.97769791,626.03,625.09,1.385]
[1771715464196,0.97769791,626.02,625.09,1.385]
[1771715464396,0.97769791,626.01,625.09,1.385]
[1771715464595,0.97769791,626.0,625.09,1.385]
[1771715464793,0.97769791,625.99,625.09,1.385]
[1771715465095,0.97769791,625.98,625.09,1.385]
[1771715465292,0.97769791,625.97,625.09,1.385]
[1771715465496,0.97769791,625.96,625.09,1.385]
[1771715465692,0.97769791,625.95,625.09,1.385]
[1771715465896,0.97769791,625.94,625.09,1.385]
[1771715466094,0.97769791,625.93,625.09,1.385]
[1771715466298,0.97769791,625.92,625.09,1.385]
[1771715466595,0.97769791,625.91,625.09,1.385]
[1771715466798,0.97769791,625.9,625.09,1.385]
[1771715467099,0.97769791,625.89,625.09,1.385]
[1771715467294,0.97769791,625.88,625.09,1.385]
[1771715467495,1.19188994,626.08,625.09,1.385]
[1771715467694,0.97809221,626.07,625.09,1.385]
[1771715467893,0.97809221,626.06,625.09,1.385]
[1771715468098,0.97809221,626.05,625.09,1.385]
[1771715468299,0.97809221,626.04,625.09,1.385]
[1771715468499,0.97809221,626.03,625.09,1.385]
[1771715468697,0.97809221,626.02,625.09,1.385]
[1771715468900,0.97809221,626.01,625.09,1.385]
[1771715469097,1.19188994,626.08,625.09,1.385]
[1771715469098,0.97809221,626.0,625.09,1.385]
[1771715469302,0.97809221,625.99,625.09,1.385]
[1771715469498,0.97809221,625.98,625.09,1.385]
[1771715469797,0.97809221,625.97,625.09,1.385]
[1771715470001,0.97809221,625.96,625.09,1.385]
[1771715470297,0.97809221,625.95,625.09,1.385]
[1771715470598,0.97809221,625.94,625.09,1.385]
[1771715470797,0.97809221,625.93,625.09,1.385]
[1771715470999,0.97809221,625.92,625.09,1.385]
[1771715471200,0.97809221,625.91,625.09,1.385]
[1771715471498,0.97809221,625.9,625.09,1.385]
[1771715471697,0.97809221,625.89,625.09,1.385]
[1771715471996,0.97809221,625.88,625.09,1.385]
[1771715472200,0.97869104,625.87,625.09,1.385]
[1771715472398,1.19188994,626.07,625.09,1.385]
[1771715472700,0.97869136,626.06,625.09,1.385]
[1771715472897,0.97869136,626.05,625.09,1.385]
[1771715473196,0.97869136,626.04,625.09,1.385]
[1771715473396,0.97869136,626.03,625.09,1.385]
[1771715473599,0.97869136,626.02,625.09,1.385]
[1771715473800,0.97869136,626.01,625.09,1.385]
[1771715473999,0.97869136,626.0,625.09,1.385]
[1771715474198,0.97869136,625.99,625.09,1.385]
[1771715474399,0.97869136,625.98,625.09,1.385]
[1771715474698,0.97869136,625.97,625.09,1.385]
[1771715474902,0.97869136,625.96,625.09,1.385]
[1771715475103,0.97869136,625.95,625.07,2.3913379]
[1771715475304,0.97869136,625.94,625.08,2.3913379]
[1771715475601,0.97869136,625.93,625.08,2.3913379]
[1771715475804,0.97869136,625.92,625.08,2.3913379]
[1771715476005,0.97869136,625.91,625.08,2.3913379]
[1771715476305,0.97869136,625.9,625.09,2.3913379]
[1771715476504,0.97869136,625.89,625.09,2.3913379]
[1771715476805,0.97869136,625.88,625.09,2.3913379]
[1771715477005,0.97869136,625.87,625.09,2.3913379]
[1771715477202,0.97869136,625.87,624.92,0.27805965]
[1771715477203,0.97869136,625.86,625.1,2.3913379]
[1771715477402,0.97869136,625.85,625.1,2.3913379]
[1771715477706,0.97869136,625.84,625.11,1.564]
[1771715478003,1.19188994,626.04,625.11,1.564]
[1771715478205,0.98000528,626.03,625.11,1.564]
[1771715478405,2.17189522,626.03,625.11,3.9553379]
[1771715478605,0.98000528,626.02,625.11,3.9553379]
[1771715479405,2.17189522,626.02,625.12,2.3913379]
[1771715479706,0.98000528,626.01,625.12,2.3913379]
[1771715480310,1.19188994,626.01,625.13,2.3913379]
[1771715480507,0.98000528,626.0,625.13,2.3913379]
[1771715480706,0.98000528,625.99,625.13,2.3913379]
[1771715480906,0.98000528,625.98,625.13,2.3913379]
[1771715481107,0.98000528,625.97,625.13,2.3913379]
[1771715481309,0.98000528,625.96,625.2,2.3913379]
[1771715481503,0.98000528,625.95,625.24,2.3913379]
[1771715481707,0.98000528,625.94,625.24,2.3913379]
[1771715481908,0.98000528,625.93,625.24,2.3913379]
[1771715482107,0.98000528,625.92,625.28,2.3913379]
[1771715482306,1.19188994,626.12,625.28,2.3913379]
[1771715483308,1.19188994,626.12,625.27,2.3913379]
[1771715484412,0.98212783,626.11,625.27,2.3913379]
[1771715484612,0.98212783,626.1,625.27,2.3913379]
[1771715484810,0.98212783,626.09,625.27,2.3913379]
[1771715485010,0.98212783,626.08,625.27,2.3913379]
[1771715485212,0.98212783,626.07,625.27,2.3913379]
[1771715485509,0.98212783,626.06,625.26,2.3913379]
[1771715485713,0.98212783,626.05,625.26,2.3913379]
[1771715485912,0.98212783,626.04,625.26,2.3913379]
[1771715486113,0.98212783,626.03,625.26,2.3913379]
[1771715486310,0.98212783,626.02,625.26,2.3913379]
[1771715486515,0.98212783,626.01,625.26,2.3913379]
[1771715486809,1.19188994,626.13,625.26,2.3913379]
[1771715486810,0.98212783,626.0,625.26,2.3913379]
[1771715487010,0.98212783,625.99,625.26,2.3913379]
[1771715487214,1.19188994,626.13,625.26,2.3913379]
[1771715487215,0.98212783,625.98,625.26,2.3913379]
[1771715487413,0.98212783,625.97,625.26,2.3913379]
[1771715487613,0.98212783,625.96,625.26,2.3913379]
[1771715487817,0.98212783,625.95,625.26,2.3913379]
[1771715488016,0.98212783,625.94,625.26,2.3913379]
[1771715488218,1.19188994,626.14,625.26,2.3913379]
[1771715488415,0.98053494,626.13,625.26,2.3913379]
[1771715488615,0.98053494,626.12,625.26,2.3913379]
[1771715488819,0.98053494,626.11,625.26,2.3913379]
[1771715489017,0.98053494,626.1,625.26,2.3913379]
[1771715489219,0.98053494,626.09,625.26,2.3913379]
[1771715489514,0.98053494,626.08,625.26,2.3913379]
[1771715489719,0.98053494,626.07,625.26,2.3913379]
[1771715490015,1.19188994,626.14,625.26,2.3913379]
[1771715490016,0.98053494,626.06,625.26,2.3913379]
[1771715490216,0.98053494,626.05,625.26,2.3913379]
[1771715490420,0.98053494,626.04,625.26,2.3913379]
[1771715490619,0.98053494,626.03,625.26,2.3913379]
[1771715490916,0.98053494,626.02,625.26,2.3913379]
[1771715491115,0.98053494,626.01,625.26,2.3913379]
[1771715491317,0.98053494,626.0,625.26,2.3913379]
[1771715491519,0.98053494,625.99,625.26,2.3913379]
[1771715491717,0.98053494,625.98,625.26,2.3913379]
[1771715492014,0.98053494,625.97,625.26,2.3913379]
[1771715492219,0.98053494,625.96,625.26,2.3913379]
[1771715492420,1.19188994,626.15,625.26,2.3913379]
[1771715492421,0.98053494,625.95,625.26,2.3913379]
[1771715492618,1.19188994,626.15,625.26,2.3913379]
[1771715492821,0.98022569,626.14,625.26,2.3913379]
[1771715493024,0.98022569,626.13,625.27,2.3913379]
[1771715493224,3.97653623,626.83,625.12,0.27806188]
[1771715493225,0.98022569,626.12,625.3,2.3913379]
[1771715493520,0.98022569,626.11,625.3,2.3913379]
[1771715493724,0.98022569,626.1,625.3,2.3913379]
[1771715493924,0.98022569,626.09,625.3,2.3913379]
[1771715494225,0.98022569,626.08,625.3,2.3913379]
[1771715494420,0.98022569,626.07,625.3,2.3913379]
[1771715494625,1.19188994,626.28,625.36,2.3913379]
[1771715494825,0.98005415,626.27,625.36,2.3913379]
[1771715495125,0.98005415,626.27,625.12,0.27806188]
[1771715495126,0.98005415,626.26,625.4,2.3913379]
[1771715495425,0.98005415,626.25,625.39,2.3913379]
[1771715495625,2.38219448,626.55,625.12,0.27806188]
[1771715495626,0.98005415,626.24,625.44,2.3913379]
[1771715495824,0.98005415,626.23,625.44,2.3913379]
[1771715496022,0.98005415,626.22,625.44,2.3913379]
[1771715496220,1.19188994,626.38,625.42,2.3913379]
[1771715496221,0.98005415,626.21,625.42,2.3913379]
[1771715496525,0.98005415,626.2,625.38,2.3913379]
[1771715496721,0.98005415,626.19,625.38,2.3913379]
[1771715497022,0.98005415,626.18,625.38,2.3913379]
[1771715497222,0.98005415,626.17,625.38,2.3913379]
[1771715497422,0.98005415,626.16,625.38,2.3913379]
[1771715497725,0.98005415,626.15,625.38,2.3913379]
[1771715497922,1.19188994,626.35,625.38,2.3913379]
[1771715498126,0.97896167,626.34,625.38,2.3913379]
[1771715498323,0.97896167,626.33,625.37,2.3913379]
[1771715498526,0.97896167,626.32,625.37,2.3913379]
[1771715498728,0.97896167,626.31,625.37,2.3913379]
[1771715498926,0.97896167,626.3,625.37,2.3913379]
[1771715499125,0.97896167,626.29,625.37,2.3913379]
[1771715499325,0.97896167,626.28,625.36,2.3913379]
[1771715499529,0.97896167,626.27,625.36,2.3913379]
[1771715499728,0.97896167,626.26,625.36,2.3913379]
[1771715500027,0.97896167,626.25,625.36,2.3913379]
[1771715500229,0.97896167,626.24,625.37,2.3913379]
[1771715500425,0.97896167,626.23,625.37,2.3913379]
[1771715500628,0.97896167,626.22,625.37,2.3913379]
[1771715500928,0.97896167,626.21,625.37,2.3913379]
[1771715501127,0.97896167,626.2,625.37,2.3913379]
[1771715501330,0.97896167,626.19,625.36,2.3913379]
[1771715501627,0.97896167,626.18,625.36,2.3913379]
[1771715501827,1.19188994,626.38,625.36,2.3913379]
[1771715502028,0.97821704,626.37,625.36,2.3913379]
[1771715502225,0.97821704,626.36,625.36,2.3913379]
[1771715502428,0.97821704,626.35,625.36,2.3913379]
[1771715502628,0.97821704,626.34,625.36,2.3913379]
[1771715502928,0.97821704,626.33,625.36,2.3913379]
[1771715503124,0.97821704,626.32,625.36,2.3913379]
[1771715503330,0.97821704,626.31,625.35,2.3913379]
[1771715503524,0.97821704,626.3,625.35,2.3913379]
[1771715503727,0.97821704,626.29,625.35,2.3913379]
[1771715503925,0.97821704,626.28,625.35,2.3913379]
[1771715504125,0.97821704,626.27,625.35,2.3913379]
[1771715504329,0.97821704,626.26,625.35,2.3913379]
[1771715504525,0.97821704,626.25,625.35,2.3913379]
[1771715504731,0.97821704,626.24,625.35,2.3913379]
[1771715504930,0.97821704,626.23,625.35,2.3913379]
[1771715505128,0.97821704,626.22,625.35,2.3913379]
[1771715505333,0.97821704,626.21,625.35,2.3913379]
[1771715505536,0.97821704,626.2,625.35,2.3913379]
[1771715505734,0.97821704,626.19,625.35,2.3913379]
[1771715505934,0.97821704,626.18,625.35,2.3913379]
[1771715506235,1.19188994,626.39,625.34,2.3913379]
[1771715506435,0.97858916,626.38,625.34,2.3913379]
[1771715506636,0.97858916,626.37,625.34,2.3913379]
[1771715506836,0.97858916,626.36,625.34,2.3913379]
[1771715507033,1.19188994,626.32,625.28,2.3913379]
[1771715507233,0.97858916,626.31,625.28,2.3913379]
[1771715507435,0.97858916,626.3,625.28,2.3913379]
[1771715507638,0.97858916,626.29,625.28,2.3913379]
[1771715507939,0.97858916,626.28,625.28,2.3913379]
[1771715508139,0.97858916,626.27,625.28,2.3913379]
[1771715508338,0.97858916,626.26,625.28,2.3913379]
[1771715508539,0.97858916,626.25,625.28,2.3913379]
[1771715508837,0.97858916,626.24,625.29,1.813]
[1771715509035,0.97858916,626.23,625.29,1.813]
[1771715509336,0.97858916,626.22,625.29,1.813]
[1771715509538,0.97858916,626.21,625.29,1.813]
[1771715509739,0.97858916,626.2,625.29,1.813]
[1771715509939,0.97858916,626.19,625.29,1.813]
[1771715510136,0.97858916,626.18,625.29,1.813]
[1771715510340,0.97858916,626.17,625.29,1.813]
[1771715510542,0.97858916,626.16,625.29,1.813]
[1771715510841,0.97858916,626.15,625.29,1.813]
[1771715511142,0.97858916,626.14,625.29,1.813]
[1771715511338,0.97858916,626.13,625.29,1.813]
[1771715511542,0.97858916,626.12,625.29,1.813]
[1771715511839,1.19188994,626.33,625.29,1.813]
[1771715512039,0.97811002,626.32,625.29,1.813]
[1771715512337,2.16999996,626.32,625.29,1.813]
[1771715512541,0.97811002,626.31,625.29,1.813]
[1771715515245,0.97811002,626.31,625.29,4.2043379]
[1771715516246,2.16999996,626.31,625.29,4.2043379]
[1771715516447,0.97811002,626.3,625.29,4.2043379]
[1771715517447,0.97811002,626.3,625.31,2.3913379]
[1771715517746,0.97811002,626.29,625.31,2.3913379]
[1771715517947,0.97811002,626.28,625.31,2.3913379]
[1771715518147,0.97811002,626.27,625.31,2.3913379]
[1771715518348,0.97811002,626.26,625.32,2.3913379]
[1771715518545,0.97811002,626.25,625.32,2.3913379]
[1771715518848,0.97811002,626.24,625.32,2.3913379]
[1771715519045,0.97811002,626.23,625.32,2.3913379]
[1771715519248,0.97811002,626.22,625.32,2.3913379]
[1771715519446,0.97811002,626.21,625.32,2.3913379]
[1771715519649,0.97811002,626.2,625.32,2.3913379]
[1771715519847,0.97811002,626.19,625.32,2.3913379]
[1771715520046,0.97811002,626.18,625.32,2.3913379]
[1771715520250,0.97811002,626.17,625.33,2.3913379]
[1771715520545,0.97811002,626.16,625.33,2.3913379]
[1771715520747,0.97811002,626.15,625.33,2.3913379]
[1771715520947,0.97811002,626.14,625.33,2.3913379]
[1771715521146,0.97811002,626.13,625.33,2.3913379]
[1771715521346,0.97811002,626.12,625.33,2.3913379]
[1771715521546,0.97811002,626.11,625.33,2.3913379]
[1771715521750,1.19188994,626.31,625.33,2.3913379]
[1771715521948,0.96503513,626.3,625.33,2.3913379]
[1771715522149,2.15692507,626.3,625.32,2.3913379]
[1771715522350,2.15692507,626.29,625.32,2.3913379]
[1771715522552,0.96503513,626.28,625.32,2.3913379]
[1771715523255,0.96503513,626.28,625.33,2.3913379]
[1771715524353,2.15692507,626.28,625.34,2.3913379]
[1771715524556,0.96503513,626.27,625.34,2.3913379]
[1771715525352,2.15692507,626.27,625.35,2.3913379]
[1771715525556,0.96503513,626.26,625.35,2.3913379]
[1771715525755,0.96503513,626.25,625.35,2.3913379]
[1771715525960,0.96503513,626.24,625.35,2.3913379]
[1771715526253,0.96503513,626.23,625.36,2.3913379]
[1771715526457,0.96503513,626.22,625.36,2.3913379]
[1771715526658,0.96503513,626.21,625.36,2.3913379]
[1771715526958,0.96503513,626.2,625.36,2.3913379]
[1771715527158,0.96503513,626.19,625.38,2.3913379]
[1771715527354,0.96503513,626.18,625.47,2.3913379]
[1771715527658,1.19188994,626.37,625.47,2.3913379]
[1771715527659,0.96503513,626.17,625.47,2.3913379]
[1771715527855,1.19188994,626.37,625.47,2.3913379]
[1771715530355,2.1583428,626.37,625.47,2.3913379]
[1771715530560,0.96645286,626.36,625.47,2.3913379]
[1771715530756,0.96645286,626.35,625.47,2.3913379]
[1771715530961,0.96645286,626.34,625.47,2.3913379]
[1771715531262,0.96645286,626.33,625.53,2.3913379]
[1771715531458,0.96645286,626.32,625.47,2.3913379]
[1771715531661,0.96645286,626.31,625.47,2.3913379]
[1771715531957,0.96645286,626.3,625.47,2.3913379]
[1771715532161,0.96645286,626.29,625.47,2.3913379]
[1771715532359,0.96645286,626.28,625.48,2.3913379]